bitfinex/quotes_ETHUSD_20250914
["timestamp","ask_amount","ask_price","bid_price","bid_amount"]
[1757884813947,1e-08,4622.8,4622.7,7.09696992]
[1757884814106,1e-08,4622.8,4622.7,7.85296992]
[1757884815016,1e-08,4622.8,4622.7,8.50232268]
[1757884815637,1e-08,4622.8,4622.7,8.97062268]
[1757884819816,1e-08,4622.8,4622.7,8.50232268]
[1757884821440,1e-08,4622.8,4622.7,8.05462268]
[1757884825561,0.29820001,4622.8,4622.7,7.74632268]
[1757884825859,1.25170001,4622.8,4622.7,7.74632268]
[1757884826063,0.29820001,4622.8,4622.7,7.74632268]
[1757884828952,1.25170001,4622.8,4622.7,6.60459069]
[1757884829472,1.25170001,4622.8,4622.7,5.95523793]
[1757884835877,1.22870001,4622.8,4622.7,5.95523793]
[1757884836164,0.29820001,4622.8,4622.7,5.95523793]
[1757884837136,1e-08,4622.8,4622.7,5.95523793]
[1757884837437,1e-08,4622.8,4622.7,6.25893793]
[1757884837964,1e-08,4622.8,4622.7,7.66474025]
[1757884840386,1e-08,4622.8,4622.7,7.22134025]
[1757884841858,1e-08,4622.8,4622.7,8.26034025]
[1757884842272,1e-08,4622.8,4622.7,8.9096916]
[1757884843856,1e-08,4622.8,4622.7,9.07447192]
[1757884844187,1e-08,4622.8,4622.7,8.14347192]
[1757884846194,1e-08,4622.8,4622.7,8.58687192]
[1757884847272,1e-08,4622.8,4622.7,7.83977192]
[1757884847477,0.30900001,4622.8,4622.7,7.83977192]
[1757884848078,1e-08,4622.8,4622.7,7.83977192]
[1757884850399,1e-08,4622.8,4622.7,8.14347192]
[1757884850590,1e-08,4622.8,4622.7,8.58687192]
[1757884851102,0.30900001,4622.8,4622.7,7.83977192]
[1757884852898,0.78220001,4622.8,4622.7,6.8773696]
[1757884853702,1.22520001,4622.8,4622.7,6.8773696]
[1757884855899,0.78220001,4622.8,4622.7,6.8773696]
[1757884856196,0.30900001,4622.8,4622.7,6.8773696]
[1757884856871,0.4742,4624.5,4623.4,0.792]
[1757884857094,0.4581,4624.4,4624.3,2.16248945]
[1757884857400,1.4508287,4624.4,4624.3,2.32726977]
[1757884858010,5.0588287,4624.4,4624.3,2.32726977]
[1757884858308,4.8561,4624.4,4624.3,2.32726977]
[1757884860302,0.3158,4624.4,4624.3,2.34889466]
[1757884860483,2.239,4624.8,4624.7,2.16230241]
[1757884860678,5.6044,4624.8,4624.7,2.32708273]
[1757884860893,2.5484,4624.8,4624.7,2.32708273]
[1757884861421,1.741,4624.8,4624.7,6.11908273]
[1757884861622,5.348,4624.8,4624.7,6.40698273]
[1757884861999,1.741,4624.8,4624.7,6.40698273]
[1757884862188,5.348,4624.8,4624.7,6.40698273]
[1757884863705,5.6574,4624.8,4624.7,6.11908273]
[1757884863907,2.993,4624.8,4624.7,6.11908273]
[1757884864113,6.6,4624.8,4624.7,6.11908273]
[1757884866419,6.1554,4624.8,4624.7,6.11908273]
[1757884866592,6.6,4624.8,4624.7,6.11908273]
[1757884867490,6.6,4624.8,4624.7,6.76822613]
[1757884868621,2.5484,4624.8,4624.7,6.76822613]
[1757884868935,6.599,4624.8,4624.7,6.76822613]
[1757884870546,1.741,4624.8,4624.7,6.76822613]
[1757884870711,6.1544,4624.8,4624.7,6.76822613]
[1757884871038,6.599,4624.8,4624.7,6.76822613]
[1757884871234,6.599,4624.8,4624.7,6.76747312]
[1757884873520,5.6584,4624.8,4624.7,6.76747312]
[1757884873719,6.1564,4624.8,4624.7,6.76747312]
[1757884874142,6.601,4624.8,4624.7,6.76747312]
[1757884874711,5.6584,4624.8,4624.7,6.76747312]
[1757884876312,5.349,4624.8,4624.7,7.05537312]
[1757884877158,6.1564,4624.8,4624.7,6.76747312]
[1757884877457,6.601,4624.8,4624.7,6.76747312]
[1757884879741,6.601,4624.8,4624.7,5.97547312]
[1757884879941,7.2611,4624.8,4623.7,1.16563977]
[1757884880260,0.9426,4624.7,4624.3,2.16248184]
[1757884880564,6.3185,4624.8,4624.3,2.16248184]
[1757884880565,0.3094,4624.4,4624.3,2.16248184]
[1757884880750,3.9144,4624.4,4624.3,2.16248184]
[1757884880952,4.857,4624.4,4624.3,2.16248184]
[1757884881150,5.3427,4624.4,4623.6,0.64926001]
[1757884881461,0.9426,4624.3,4623.7,0.16418734]
[1757884881757,3.605,4624.2,4623.8,0.16418734]
[1757884881959,0.9426,4624.1,4624.0,2.16259145]
[1757884882127,1.252,4624.1,4624.0,2.32677879]
[1757884883962,1.78627,4624.1,4624.0,0.16418734]
[1757884884563,1.78627,4624.1,4624.0,2.32681709]
[1757884887639,1.252,4624.1,4624.0,2.32681709]
[1757884888967,0.8074,4624.1,4624.0,2.32681709]
[1757884891183,4.4124,4624.1,4624.0,2.32681709]
[1757884891375,3.9144,4624.1,4624.0,2.32681709]
[1757884893949,3.9144,4624.1,4624.0,2.16262975]
[1757884894153,3.9144,4624.1,4624.0,2.32697939]
[1757884896273,0.49914995,4624.7,4624.2,2.16253622]
[1757884896474,0.1821,4624.3,4624.2,2.16253622]
[1757884896674,3.7871,4624.3,4624.2,2.3268848]
[1757884897685,3.7871,4624.3,4624.2,0.16434858]
[1757884897855,3.7871,4624.3,4624.2,2.3268848]
[1757884902911,3.605,4624.3,4624.2,2.3268848]
[1757884903112,3.605,4624.3,4624.2,2.7707848]
[1757884903318,3.605,4624.3,4624.2,5.7707848]
[1757884903481,3.605,4624.3,4624.2,5.3268848]
[1757884903680,0.29022499,4624.6,4624.3,2.16246266]
[1757884903915,0.108,4624.3,4624.2,5.16252546]
[1757884904115,3.713,4624.3,4624.2,5.32689499]
[1757884906824,3.713,4624.3,4624.2,3.16436953]
[1757884907020,3.605,4624.3,4624.2,3.16436953]
[1757884907192,3.605,4624.3,4624.2,5.32690575]
[1757884908789,5.266,4624.3,4624.2,5.32690575]
[1757884909723,5.266,4624.3,4624.2,5.3272]
[1757884911405,5.46869596,4624.3,4624.2,5.3272]
[1757884912730,5.46869596,4624.3,4624.2,5.7711]
[1757884913029,5.46869596,4624.3,4624.2,6.0728]
[1757884913325,5.46869596,4624.3,4624.2,5.7711]
[1757884915055,1.86369596,4624.3,4624.2,5.7711]
[1757884915256,5.265,4624.3,4624.2,5.7711]
[1757884915414,5.46769596,4624.3,4624.2,5.7711]
[1757884916527,5.46769596,4624.3,4624.2,3.60856378]
[1757884916734,5.46769596,4624.3,4624.2,3.16466378]
[1757884916932,5.46769596,4624.3,4624.2,5.3272]
[1757884917251,5.46769596,4624.3,4624.2,5.16253622]
[1757884917454,5.46769596,4624.3,4624.2,3.16467014]
[1757884918552,5.46769596,4624.3,4624.2,5.32720636]
[1757884919359,5.46769596,4624.3,4624.2,3.16467014]
[1757884920342,5.46769596,4624.3,4624.2,5.32720636]
[1757884920657,5.46769596,4624.3,4624.2,3.16467014]
[1757884921368,5.46769596,4624.3,4624.2,5.32720636]
[1757884921573,5.46769596,4624.3,4624.2,5.79530636]
[1757884922468,5.46769596,4624.3,4624.2,6.10200636]
[1757884924746,5.46769596,4624.3,4624.2,3.93947014]
[1757884925245,5.46770439,4624.3,4624.2,3.93947014]
[1757884925936,5.46770439,4624.3,4624.2,6.10200636]
[1757884928266,5.46770439,4624.3,4624.2,3.93947014]
[1757884928648,5.46770439,4624.3,4624.2,6.10200636]
[1757884929072,5.46770439,4624.3,4624.2,3.93947014]
[1757884929780,5.46770439,4624.3,4624.2,6.10200636]
[1757884930154,5.46770439,4624.3,4624.2,3.93947014]
[1757884930353,1.86370439,4624.3,4624.2,3.93947014]
[1757884930662,5.264,4624.3,4624.2,3.93947014]
[1757884930867,5.46670439,4624.3,4624.2,6.10200636]
[1757884931377,5.46670439,4624.3,4624.2,3.93947014]
[1757884931582,5.46670931,4624.3,4624.2,3.93947014]
[1757884933761,5.46670931,4624.3,4624.2,3.16467014]
[1757884933961,5.97419527,4624.3,4624.2,0.16467014]
[1757884934169,6.57262366,4624.3,4624.1,0.001]
[1757884934487,2.96367392,4624.2,4624.1,0.001]
[1757884934977,3.06277392,4624.2,4624.1,0.001]
[1757884935153,4.15254149,4624.2,4624.1,0.001]
[1757884942666,7.45214575,4624.2,4624.1,0.001]
[1757884942977,7.56564575,4624.2,4624.1,0.001]
[1757884943178,7.45135955,4624.2,4624.1,0.001]
[1757884943980,7.56485955,4624.2,4624.1,0.001]
[1757884945273,7.56477148,4624.2,4624.1,0.001]
[1757884946973,7.65137903,4624.2,4624.1,0.001]
[1757884947170,4.35177477,4624.2,4624.1,0.001]
[1757884947397,7.65137903,4624.2,4624.1,0.001]
[1757884949867,7.53787903,4624.2,4624.1,0.001]
[1757884950067,14.41644032,4624.2,4624.1,0.001]
[1757884950307,15.20844032,4624.2,4624.1,0.001]
[1757884950506,2.9547233,4623.8,4623.7,0.001]
[1757884950666,18.37166047,4623.8,4623.7,0.001]
[1757884951011,19.5053175,4623.8,4623.7,0.001]
[1757884951599,19.59194212,4623.8,4623.7,0.001]
[1757884952108,2.16291041,4623.4,4623.3,1e-08]
[1757884952312,13.72651467,4623.4,4623.3,1e-08]
[1757884952512,14.48354629,4623.4,4623.3,1e-08]
[1757884952715,14.69110451,4623.4,4623.3,1e-08]
[1757884953287,14.69110542,4623.4,4623.3,1e-08]
[1757884953622,15.21035661,4623.4,4623.3,1e-08]
[1757884953789,15.08920688,4623.4,4623.3,1e-08]
[1757884954416,14.77399066,4623.4,4623.3,1e-08]
[1757884954618,14.88729066,4623.4,4623.3,1e-08]
[1757884955348,15.21037024,4623.4,4623.3,1e-08]
[1757884956125,15.09707024,4623.4,4623.3,1e-08]
[1757884956539,15.09707024,4623.4,4623.3,1.23200001]
[1757884956540,4.55294118,4623.4,4623.3,1.23200001]
[1757884956821,7.74998999,4623.4,4623.3,1.23200001]
[1757884957395,5.58707958,4623.4,4623.3,1.23200001]
[1757884957610,7.74998999,4623.4,4623.3,1.23200001]
[1757884957993,5.58707958,4623.4,4623.3,1.23200001]
[1757884958626,5.46592474,4623.4,4623.3,1.23200001]
[1757884961304,5.58705721,4623.4,4623.3,1.23200001]
[1757884969844,1.98405721,4623.4,4623.3,1.23200001]
[1757884970024,5.263,4623.4,4623.3,1.23200001]
[1757884970393,5.46492474,4623.4,4623.3,1.23200001]
[1757884971345,5.58627201,4623.4,4623.3,1.23200001]
[1757884971648,5.46492474,4623.4,4623.3,3.3949572]
[1757884976362,0.002,4623.8,4623.3,3.3949572]
[1757884976363,0.108,4623.6,4623.3,1.78790035]
[1757884976562,3.602,4623.5,4623.4,0.9112]
[1757884976743,3.602,4623.5,4623.4,3.37061041]
[1757884977532,0.108,4623.6,4623.5,2.16286363]
[1757884977885,3.602,4623.6,4623.5,6.25989167]
[1757884978065,3.602,4623.6,4623.5,6.53476304]
[1757884978558,3.602,4623.6,4623.5,7.40463039]
[1757884979344,3.602,4623.6,4623.5,7.24043098]
[1757884979740,3.602,4623.6,4623.5,7.40452557]
[1757884980145,1.661,4623.7,4623.6,2.16281685]
[1757884980344,0.002,4623.8,4623.7,5.95477007]
[1757884980551,3.394,4623.8,4623.7,8.65905021]
[1757884980958,3.394,4623.8,4623.7,8.65901931]
[1757884981469,0.002,4623.8,4623.7,8.65901931]
[1757884983145,0.002,4623.8,4623.7,8.65884948]
[1757884989762,0.002,4623.8,4623.7,2.32663954]
[1757884990687,0.002,4623.8,4623.7,5.76943954]
[1757884991387,0.1841,4623.8,4623.7,2.16277007]
[1757884991553,0.2921,4623.8,4623.7,2.16277007]
[1757884992587,1.15531,4623.8,4623.5,2.16284204]
[1757884992908,1.15531,4623.8,4623.3,1e-08]
[1757884992909,1.04731,4623.8,4623.6,2.16279739]
[1757884993693,1.04731,4623.8,4623.5,2.16286057]
[1757884993863,0.108,4623.5,4623.3,2.16295446]
[1757884994064,3.7806,4623.4,4623.3,2.16295446]
[1757884994588,3.7806,4623.4,4623.3,1e-08]
[1757884995403,4.2545,4623.4,4623.3,2.1629572]
[1757884995691,3.7806,4623.4,4623.3,2.1629572]
[1757884998760,3.7806,4623.4,4623.3,1e-08]
[1757884998961,4.84236,4623.4,4623.3,1e-08]
[1757885000005,4.80946,4623.4,4623.3,1e-08]
[1757885000299,4.81146,4623.4,4623.3,1e-08]
[1757885004200,4.33756,4623.4,4623.3,1e-08]
[1757885005008,4.15696,4623.4,4623.3,1e-08]
[1757885007007,0.002,4623.4,4623.3,2.8944572]
[1757885007216,3.602,4623.4,4623.3,3.3550572]
[1757885007580,3.602,4623.4,4623.3,2.8944572]
[1757885008910,3.602,4623.4,4623.3,0.73150001]
[1757885009096,3.602,4623.4,4623.3,2.8944572]
[1757885009900,3.602,4623.4,4623.3,0.73150001]
[1757885010510,3.602,4623.4,4623.3,2.8944572]
[1757885011011,3.602,4623.4,4623.3,0.73150001]
[1757885013993,3.602,4623.4,4623.3,1e-08]
[1757885014812,4.3104,4623.4,4623.3,1e-08]
[1757885014999,4.7712,4623.4,4623.3,1e-08]
[1757885016292,4.51257429,4623.4,4623.3,1e-08]
[1757885020344,4.63401141,4623.4,4623.3,1e-08]
[1757885027374,5.09481141,4623.4,4623.3,1e-08]
[1757885027668,4.63401141,4623.4,4623.3,1e-08]
[1757885033168,6.79692182,4623.4,4623.3,1e-08]
[1757885033343,7.25772182,4623.4,4623.3,1e-08]
[1757885033538,5.09481141,4623.4,4623.3,1e-08]
[1757885033744,4.63401141,4623.4,4623.3,1e-08]
[1757885034583,7.29012182,4623.4,4623.3,1e-08]
[1757885035069,8.19304627,4623.4,4623.3,1e-08]
[1757885039154,7.72592182,4623.4,4623.3,1e-08]
[1757885039361,7.69452182,4623.4,4623.3,1e-08]
[1757885043598,7.23272182,4623.4,4623.3,1e-08]
[1757885048413,7.05062182,4623.4,4623.3,1e-08]
[1757885050703,7.05062182,4623.4,4623.3,0.45700001]
[1757885052270,7.05062182,4623.4,4623.3,1e-08]
[1757885052477,7.05062182,4623.4,4623.3,0.45700001]
[1757885055729,7.05062182,4623.4,4623.3,0.74860001]
[1757885056283,7.05062182,4623.4,4623.3,0.45700001]
[1757885060005,7.05062182,4623.4,4623.3,1e-08]
[1757885060314,7.05062182,4623.4,4623.3,0.45700001]
[1757885061224,7.51737611,4623.4,4623.3,1e-08]
[1757885071376,7.61637611,4623.4,4623.3,1e-08]
[1757885072684,8.11357611,4623.4,4623.3,1e-08]
[1757885073086,7.61637611,4623.4,4623.3,1e-08]
[1757885074984,7.51737611,4623.4,4623.3,1e-08]
[1757885075187,7.51799519,4623.4,4623.3,1e-08]
[1757885075870,7.61709519,4623.4,4623.3,1e-08]
[1757885078485,7.51799519,4623.4,4623.3,1e-08]
[1757885081101,7.51799519,4623.4,4623.3,0.73260001]
[1757885081400,10.82047802,4623.4,4623.3,0.73260001]
[1757885084694,10.82047802,4623.4,4623.3,1.22400001]
[1757885084894,7.22047802,4623.4,4623.3,1.22400001]
[1757885085096,10.81847802,4623.4,4623.3,1.22400001]
[1757885085295,10.81847802,4623.4,4623.3,0.73260001]
[1757885085504,7.22047802,4623.4,4623.3,0.73260001]
[1757885085707,10.81847802,4623.4,4623.3,0.73260001]
[1757885095934,10.81847802,4623.4,4623.3,1.22400001]
[1757885095935,3.92423049,4623.4,4623.3,1.22400001]
[1757885096142,0.32623049,4623.4,4623.3,1.22400001]
[1757885096433,0.002,4623.8,4623.7,2.16277007]
[1757885096604,3.6,4623.8,4623.7,2.16277007]
[1757885096941,3.6,4623.8,4623.7,7.01920764]
[1757885097095,3.6,4623.8,4623.7,6.38677007]
[1757885099332,3.6,4623.8,4623.7,7.03612143]
[1757885102245,3.6,4623.8,4623.7,4.44105136]
[1757885102410,3.6,4623.8,4623.7,3.7917]
[1757885102737,3.6,4623.8,4623.7,4.2663]
[1757885103222,3.6,4623.8,4623.7,3.7917]
[1757885103400,7.19858283,4623.8,4623.3,1e-08]
[1757885103604,3.8961,4623.8,4623.4,0.479]
[1757885104824,0.108,4623.4,4623.3,1e-08]
[1757885105038,3.705,4623.4,4623.3,1e-08]
[1757885105238,3.705,4623.4,4623.3,0.31280001]
[1757885105735,3.705,4623.4,4623.3,0.79180001]
[1757885107244,3.705,4623.4,4623.3,0.31280001]
[1757885107423,4.8404,4623.4,4623.3,1e-08]
[1757885107741,4.4699,4623.4,4623.3,1e-08]
[1757885107936,6.63281041,4623.4,4623.3,1e-08]
[1757885108643,7.09981041,4623.4,4623.3,1e-08]
[1757885109224,6.63281041,4623.4,4623.3,1e-08]
[1757885109448,7.89798217,4623.4,4623.3,1e-08]
[1757885112174,7.98459047,4623.4,4623.3,1e-08]
[1757885112676,8.18650037,4623.4,4623.3,1e-08]
[1757885113079,8.3076561,4623.4,4623.3,1e-08]
[1757885115686,8.7746561,4623.4,4623.3,1e-08]
[1757885116541,8.77472487,4623.4,4623.3,1e-08]
[1757885117795,12.59765766,4623.4,4623.3,1e-08]
[1757885119993,12.59764575,4623.4,4623.3,1e-08]
[1757885120193,12.13064575,4623.4,4623.3,1e-08]
[1757885121200,12.59764575,4623.4,4623.3,1e-08]
[1757885124396,12.59758444,4623.4,4623.3,1e-08]
[1757885131508,13.06305441,4623.4,4623.3,1e-08]
[1757885132079,13.06332043,4623.4,4623.3,1e-08]
[1757885132681,12.59632043,4623.4,4623.3,1e-08]
[1757885133112,13.05042043,4623.4,4623.3,1e-08]
[1757885133614,12.59632043,4623.4,4623.3,1e-08]
[1757885135195,16.84242043,4623.4,4623.3,1e-08]
[1757885135391,16.84242043,4623.4,4623.2,0.001]
[1757885135392,5.95495719,4623.3,4623.2,0.001]
[1757885135727,9.59600262,4623.3,4623.2,0.001]
[1757885135908,10.34340262,4623.3,4623.2,0.001]
[1757885136108,10.43003474,4623.3,4623.2,0.001]
[1757885136412,11.72903474,4623.3,4623.2,0.001]
[1757885136611,10.43003474,4623.3,4623.2,0.001]
[1757885136814,9.84771111,4623.3,4623.2,0.001]
[1757885137404,9.96907235,4623.3,4623.2,0.001]
[1757885137587,10.17134102,4623.3,4623.2,0.001]
[1757885138410,9.84771111,4623.3,4623.2,0.001]
[1757885139412,10.17143152,4623.3,4623.2,0.001]
[1757885141028,9.71733152,4623.3,4623.2,0.001]
[1757885144731,16.38886431,4623.3,4623.2,0.001]
[1757885145094,16.38886431,4623.3,4623.2,0.7795]
[1757885145715,16.38886431,4623.3,4623.2,0.001]
[1757885146108,16.38886431,4623.3,4623.2,0.305]
[1757885147036,16.38886431,4623.3,4623.2,0.7795]
[1757885147502,18.04986431,4623.3,4623.2,0.7795]
[1757885147734,18.04995809,4623.3,4623.2,0.7795]
[1757885147920,18.04995809,4623.3,4623.2,0.001]
[1757885149909,18.35465809,4623.3,4623.2,0.001]
[1757885150117,2.16314434,4622.9,4622.8,0.001]
[1757885150316,9.81558055,4622.9,4622.8,0.4599]
[1757885150628,10.28105052,4622.9,4622.8,0.305]
[1757885150829,10.28105052,4622.9,4622.8,0.7795]
[1757885151234,10.28105052,4622.9,4622.8,0.001]
[1757885151434,4.26388901,4622.9,4622.8,1.2384]
[1757885151737,6.08301551,4622.9,4622.8,1.2384]
[1757885152303,3.91987117,4622.9,4622.8,1.2384]
[1757885152705,6.08301551,4622.9,4622.8,1.2384]
[1757885154926,6.08307244,4622.9,4622.8,1.2384]
[1757885156246,0.3239281,4622.9,4622.8,1.2384]
[1757885156464,0.20245506,4622.9,4622.8,1.2384]
[1757885156612,3.9199281,4622.9,4622.8,1.2384]
[1757885156813,3.79845506,4622.9,4622.8,1.2384]
[1757885157317,3.9199281,4622.9,4622.8,1.2384]
[1757885157569,3.79845506,4622.9,4622.8,1.2384]
[1757885158064,3.9199281,4622.9,4622.8,1.2384]
[1757885158304,3.79845506,4622.9,4622.8,1.2384]
[1757885158545,3.9199281,4622.9,4622.8,1.2384]
[1757885158745,3.79848584,4622.9,4622.8,1.2384]
[1757885158948,3.91997696,4622.9,4622.8,1.2384]
[1757885159157,3.79848584,4622.9,4622.8,1.2384]
[1757885159715,3.91997696,4622.9,4622.8,1.2384]
[1757885159947,3.79848584,4622.9,4622.8,1.2384]
[1757885160621,3.91997696,4622.9,4622.8,1.2384]
[1757885160957,3.79848584,4622.9,4622.8,1.2384]
[1757885161321,3.91997696,4622.9,4622.8,1.2384]
[1757885163424,3.91997696,4622.9,4622.8,0.001]
[1757885163629,3.79848584,4622.9,4622.8,0.7721]
[1757885164025,3.91997696,4622.9,4622.8,0.7721]
[1757885164254,3.79848584,4622.9,4622.8,0.7721]
[1757885164631,3.91997696,4622.9,4622.8,0.7721]
[1757885165514,6.0831213,4622.9,4622.8,0.7721]
[1757885165952,3.91997696,4622.9,4622.8,0.7721]
[1757885166249,3.79848584,4622.9,4622.8,0.7721]
[1757885166551,7.7441213,4622.9,4622.8,0.7721]
[1757885167146,5.58097696,4622.9,4622.8,0.7721]
[1757885167823,7.7441213,4622.9,4622.8,0.7721]
[1757885168550,5.58097696,4622.9,4622.8,0.7721]
[1757885171828,5.58097696,4622.9,4622.8,0.001]
[1757885171829,7.58898066,4622.9,4622.8,0.001]
[1757885172151,10.12808217,4622.9,4622.8,0.001]
[1757885172343,10.59456254,4622.9,4622.8,0.001]
[1757885173344,10.21860537,4622.9,4622.8,0.001]
[1757885176552,13.86838147,4622.9,4622.8,0.001]
[1757885177565,16.11863816,4622.9,4622.8,0.001]
[1757885178068,16.55713816,4622.9,4622.8,0.001]
[1757885179748,16.03815623,4622.9,4622.8,0.001]
[1757885184587,16.03800985,4622.9,4622.8,0.001]
[1757885186469,15.28900985,4622.9,4622.8,0.001]
[1757885186984,15.59950985,4622.9,4622.8,0.001]
[1757885187686,16.03800985,4622.9,4622.8,0.001]
[1757885187894,15.59950985,4622.9,4622.8,0.001]
[1757885191879,16.02920985,4622.9,4622.8,0.001]
[1757885197309,16.61231031,4622.9,4622.8,0.001]
[1757885200410,2.16323793,4622.7,4622.6,0.001]
[1757885200610,7.91215062,4622.7,4622.6,0.001]
[1757885201311,8.49541534,4622.7,4622.6,0.001]
[1757885202314,8.49541534,4622.7,4622.6,0.7662]
[1757885204213,6.08210245,4622.7,4622.6,0.7662]
[1757885204394,6.08210245,4622.7,4622.6,1.2004]
[1757885209427,3.91886452,4622.7,4622.6,1.2004]
[1757885209725,6.08210245,4622.7,4622.6,1.2004]
[1757885214509,6.08210245,4622.7,4622.6,0.7662]
[1757885222858,6.08210245,4622.7,4622.6,0.001]
[1757885224061,11.62617299,4622.7,4622.6,0.001]
[1757885224363,12.09291952,4622.7,4622.6,0.001]
[1757885225063,13.23432666,4622.7,4622.6,0.001]
[1757885226785,12.74262666,4622.7,4622.6,0.001]
[1757885227088,13.23432666,4622.7,4622.6,0.001]
[1757885228853,12.74262666,4622.7,4622.6,0.001]
[1757885229986,12.7428342,4622.7,4622.6,0.001]
[1757885230689,12.3062342,4622.7,4622.6,0.001]
[1757885230886,13.2345342,4622.7,4622.6,0.001]
[1757885231688,12.7428342,4622.7,4622.6,0.001]
[1757885237807,12.74291612,4622.7,4622.6,0.001]
[1757885241799,9.43896526,4622.7,4622.6,0.001]
[1757885248514,9.00236526,4622.7,4622.6,0.001]
[1757885250739,8.68596526,4622.7,4622.6,0.3031]
[1757885251038,8.68596526,4622.7,4622.6,1.2074]
[1757885251634,8.68596526,4622.7,4622.6,0.774]
[1757885255240,8.99756526,4622.7,4622.6,0.001]
[1757885257471,9.93696526,4622.7,4622.6,0.001]
[1757885257678,9.46516526,4622.7,4622.6,0.001]
[1757885258764,8.99756526,4622.7,4622.6,0.001]
[1757885259354,9.46516526,4622.7,4622.6,0.001]
[1757885263079,8.99756526,4622.7,4622.6,0.001]
[1757885263803,9.46516526,4622.7,4622.6,0.001]
[1757885270678,11.12716526,4622.7,4622.6,0.001]
[1757885272507,10.65956526,4622.7,4622.6,0.001]
[1757885273711,10.34796526,4622.7,4622.6,0.001]
[1757885275109,10.34796526,4622.7,4622.6,0.3139]
[1757885275314,10.34796526,4622.7,4622.6,0.766]
[1757885278512,10.34796526,4622.7,4622.6,0.3139]
[1757885278691,10.34796526,4622.7,4622.6,0.001]
[1757885280618,10.34801062,4622.7,4622.6,0.001]
[1757885281221,10.34801153,4622.7,4622.6,0.001]
[1757885287914,10.65731153,4622.7,4622.6,0.001]
[1757885288994,11.10601153,4622.7,4622.6,0.001]
[1757885291228,11.10602216,4622.7,4622.6,0.001]
[1757885292352,10.65732216,4622.7,4622.6,0.001]
[1757885302879,10.65734352,4622.7,4622.6,0.001]
[1757885303778,13.96126035,4622.7,4622.6,0.001]
[1757885306758,14.40996035,4622.7,4622.6,0.001]
[1757885310723,16.96126035,4622.7,4622.6,0.001]
[1757885310876,17.91286035,4622.7,4622.6,0.001]
[1757885311198,8.46729516,4622.4,4622.3,1.02384247]
[1757885311400,14.98842576,4622.4,4622.3,0.001]
[1757885311601,15.75162576,4622.4,4622.3,0.001]
[1757885311775,15.83826295,4622.4,4622.3,0.001]
[1757885317839,15.83801115,4622.4,4622.3,0.001]
[1757885318036,16.33261115,4622.4,4622.3,0.001]
[1757885318240,16.21102406,4622.4,4622.3,0.001]
[1757885318394,16.33245276,4622.4,4622.3,0.001]
[1757885318809,15.83785276,4622.4,4622.3,0.001]
[1757885319848,15.83782703,4622.4,4622.3,0.001]
[1757885323302,15.38082703,4622.4,4622.3,0.001]
[1757885330129,15.07462703,4622.4,4622.3,0.001]
[1757885333985,15.07459215,4622.4,4622.3,0.001]
[1757885337384,15.07459215,4622.4,4622.3,0.2994]
[1757885337680,9.63152349,4622.4,4622.3,1.2308]
[1757885340979,9.63185717,4622.4,4622.3,1.2308]
[1757885341977,9.63185717,4622.4,4622.1,1e-08]
[1757885341978,5.16342513,4622.3,4622.1,1e-08]
[1757885342169,5.95551874,4622.1,4621.7,0.001]
[1757885342370,12.06884602,4621.9,4621.7,0.001]
[1757885342610,13.15145657,4621.9,4621.7,0.001]
[1757885342807,14.4657539,4621.9,4621.7,0.001]
[1757885342989,2.95577345,4621.6,4621.3,0.001]
[1757885343200,11.77168011,4621.4,4621.3,0.001]
[1757885343394,14.99907359,4621.4,4621.3,0.001]
[1757885343705,15.94717359,4621.4,4621.3,0.001]
[1757885344200,16.5291661,4621.4,4621.3,0.001]
[1757885344400,16.61582863,4621.4,4621.3,0.001]
[1757885345214,16.13332863,4621.4,4621.3,0.001]
[1757885346072,15.55133612,4621.4,4621.3,0.001]
[1757885351444,11.48441929,4621.4,4621.3,0.7822]
[1757885351659,11.48441929,4621.4,4621.3,0.001]
[1757885351660,11.78181929,4621.4,4621.3,0.001]
[1757885351815,15.55133612,4621.4,4621.3,0.001]
[1757885352256,16.03383612,4621.4,4621.3,0.001]
[1757885356566,15.55133612,4621.4,4621.3,0.001]
[1757885357071,16.03383612,4621.4,4621.3,0.001]
[1757885357528,16.27912573,4621.4,4621.3,0.001]
[1757885358078,2.95598692,4621.1,4621.0,0.001]
[1757885358314,13.0624632,4621.1,4621.0,0.001]
[1757885358497,14.8962454,4621.1,4621.0,0.001]
[1757885358827,14.98291732,4621.1,4621.0,0.001]
[1757885363807,15.50540924,4621.1,4621.0,0.001]
[1757885364114,16.82117038,4621.1,4621.0,0.001]
[1757885365125,16.33867038,4621.1,4621.0,0.001]
[1757885368117,17.40316289,4621.1,4621.0,0.001]
[1757885369225,2.16408059,4620.9,4620.8,0.08]
[1757885369391,15.07321746,4620.9,4620.8,1e-08]
[1757885369592,18.54829515,4620.9,4620.8,1e-08]
[1757885369829,19.00709515,4620.9,4620.8,1e-08]
[1757885370026,19.09377571,4620.9,4620.8,1e-08]
[1757885370697,18.51229638,4620.9,4620.8,1e-08]
[1757885372127,2.95617425,4620.7,4620.6,0.001]
[1757885372312,15.84382995,4620.7,4620.6,0.001]
[1757885372495,17.05707648,4620.7,4620.6,0.001]
[1757885372894,17.72598986,4620.7,4620.6,0.001]
[1757885374234,17.92031458,4620.7,4620.6,0.001]
[1757885374400,17.62185703,4620.7,4620.6,0.001]
[1757885375225,17.14347958,4620.7,4620.6,0.001]
[1757885376253,17.91942271,4620.7,4620.6,0.001]
[1757885378697,17.91942271,4620.7,4620.3,1e-08]
[1757885378698,2.16431477,4620.4,4620.3,1e-08]
[1757885378900,12.64459444,4620.4,4620.3,1e-08]
[1757885379100,13.39904097,4620.4,4620.3,1e-08]
[1757885379648,13.89324097,4620.4,4620.3,1e-08]
[1757885379800,13.31158186,4620.4,4620.3,1e-08]
[1757885380507,13.77038186,4620.4,4620.3,1e-08]
[1757885382434,21.22657919,4620.4,4620.3,1e-08]
[1757885382746,5.95636162,4620.3,4620.2,0.001]
[1757885383048,13.16559249,4620.3,4620.2,0.001]